bitfinex-derivatives/quotes_BTCF0:USTF0_20250629
["timestamp","ask_amount","ask_price","bid_price","bid_amount"]
[1751160240717,0.57898673,107490.0,107480.0,0.48481093]
[1751160240911,0.57898673,107490.0,107480.0,0.51641093]
[1751160241417,0.57898673,107490.0,107480.0,0.60942503]
[1751160242218,0.57898673,107490.0,107480.0,0.57221939]
[1751160243011,0.57898673,107490.0,107480.0,0.31537206]
[1751160243213,0.57898673,107490.0,107480.0,0.57221939]
[1751160243520,0.57898673,107490.0,107480.0,0.35257769]
[1751160243711,0.57898673,107490.0,107480.0,0.60942502]
[1751160244505,0.57898673,107490.0,107480.0,0.35257769]
[1751160247711,0.51488673,107490.0,107480.0,0.60942502]
[1751160249516,0.2580394,107490.0,107480.0,0.60942502]
[1751160249719,0.51488673,107490.0,107480.0,0.60942502]
[1751160251515,0.51488673,107490.0,107480.0,0.51641093]
[1751160256820,0.51488673,107490.0,107480.0,0.31536732]
[1751160257022,0.51488673,107490.0,107480.0,0.57221465]
[1751160257218,0.54808673,107490.0,107480.0,0.51641093]
[1751160259125,0.54808673,107490.0,107480.0,0.2595636]
[1751160260126,0.54808673,107490.0,107480.0,0.33400999]
[1751160260930,0.54808673,107490.0,107480.0,0.10764639]
[1751160261230,0.61088673,107490.0,107480.0,0.23785799]
[1751160263431,0.61088673,107490.0,107480.0,0.26985799]
[1751160263730,0.61100673,107490.0,107480.0,0.26985799]
[1751160264834,0.3240594,107490.0,107480.0,0.52670532]
[1751160265133,0.58090673,107490.0,107480.0,0.55810532]
[1751160265333,0.38704673,107490.0,107480.0,0.55810532]
[1751160265536,0.51500673,107490.0,107480.0,0.55810532]
[1751160268831,0.2581594,107490.0,107480.0,0.55810532]
[1751160269032,0.51500673,107490.0,107480.0,0.55810532]
[1751160270135,0.2581594,107490.0,107480.0,0.55810532]
[1751160270434,0.51500673,107490.0,107480.0,0.55810532]
[1751160270734,0.51500673,107490.0,107480.0,0.5725584]
[1751160272234,0.51500673,107490.0,107480.0,0.55810532]
[1751160273738,0.2581594,107490.0,107480.0,0.55810532]
[1751160273937,0.51500673,107490.0,107480.0,0.55810532]
[1751160274239,0.1301994,107490.0,107480.0,0.81495265]
[1751160274537,0.2581594,107490.0,107480.0,1.17575265]
[1751160274729,0.51500673,107490.0,107480.0,1.17575265]
[1751160275032,0.51500673,107490.0,107480.0,0.91890532]
[1751160275238,0.51500673,107490.0,107480.0,1.10130626]
[1751160276239,0.38704673,107490.0,107480.0,1.10130626]
[1751160277337,0.38704673,107490.0,107480.0,1.15705934]
[1751160277839,0.38704673,107490.0,107480.0,1.10130626]
[1751160278033,0.38704673,107490.0,107480.0,1.15705898]
[1751160280541,0.38704673,107490.0,107480.0,0.64336432]
[1751160280737,0.38704673,107490.0,107480.0,0.90021165]
[1751160281839,0.38704673,107490.0,107480.0,0.91890532]
[1751160282138,0.1301994,107490.0,107480.0,0.66205799]
[1751160282337,0.1301994,107490.0,107480.0,0.64335518]
[1751160282537,0.38704673,107490.0,107480.0,0.90020251]
[1751160285140,0.38704673,107490.0,107480.0,0.91890532]
[1751160290147,0.38704673,107490.0,107480.0,0.84445893]
[1751160291150,0.38704673,107490.0,107480.0,0.91890532]
[1751160304554,0.38704673,107490.0,107480.0,0.55810532]
[1751160304742,0.38704673,107490.0,107480.0,0.91890532]
[1751160308253,0.38704673,107490.0,107480.0,0.55810532]
[1751160308453,0.38704673,107490.0,107480.0,0.91890532]
[1751160318160,0.38704673,107490.0,107480.0,0.55810532]
[1751160318365,0.38704673,107490.0,107480.0,0.91890532]
[1751160320868,0.1301994,107490.0,107480.0,0.91890532]
[1751160321055,0.38704673,107490.0,107480.0,0.91890532]
[1751160322868,0.1301994,107490.0,107480.0,0.91890532]
[1751160323065,0.38704673,107490.0,107480.0,1.10130626]
[1751160324069,0.38704673,107490.0,107480.0,0.84445893]
[1751160325265,0.38704673,107490.0,107480.0,0.90025974]
[1751160325664,0.38704673,107490.0,107480.0,1.15710707]
[1751160326265,0.38704673,107490.0,107480.0,0.64341241]
[1751160326478,0.38704673,107490.0,107480.0,0.90025974]
[1751160331584,0.38704673,107490.0,107480.0,1.46057974]
[1751160332885,0.38704673,107490.0,107480.0,1.40477893]
[1751160334585,0.38704673,107490.0,107480.0,1.66162626]
[1751160335186,0.38704673,107490.0,107480.0,1.73607265]
[1751160335686,0.38704673,107490.0,107480.0,1.47922532]
[1751160345791,0.38704673,107490.0,107480.0,1.22237799]
[1751160345992,0.38704673,107490.0,107480.0,1.47922532]
[1751160350894,0.1301994,107490.0,107480.0,1.47922532]
[1751160351094,0.38704673,107490.0,107480.0,1.47922532]
[1751160354097,0.74784673,107490.0,107480.0,0.55810532]
[1751160354299,0.74784673,107490.0,107480.0,1.11830532]
[1751160354796,0.74784673,107490.0,107480.0,0.86145799]
[1751160354997,0.74784673,107490.0,107480.0,1.08690532]
[1751160355299,0.84114673,107490.0,107480.0,1.01245893]
[1751160359600,0.84114673,107490.0,107480.0,1.08690532]
[1751160360602,0.84114673,107490.0,107480.0,1.01245893]
[1751160361303,0.84114673,107490.0,107480.0,1.08690532]
[1751160364609,0.5842994,107490.0,107480.0,0.83005799]
[1751160364810,0.84114673,107490.0,107480.0,1.08690532]
[1751160365211,0.84114673,107490.0,107480.0,1.10541534]
[1751160366111,0.48034673,107490.0,107480.0,1.10541534]
[1751160366312,0.84114673,107490.0,107480.0,1.10541534]
[1751160369108,0.48034673,107490.0,107480.0,1.10541534]
[1751160369313,0.84114673,107490.0,107480.0,1.10541534]
[1751160371114,0.48034673,107490.0,107480.0,1.10541534]
[1751160371315,0.84114673,107490.0,107480.0,1.10541534]
[1751160375230,0.84114673,107490.0,107480.0,1.08690532]
[1751160381432,0.84114673,107490.0,107480.0,0.52670532]
[1751160381630,0.84114673,107490.0,107480.0,1.08682532]
[1751160382732,0.48034673,107490.0,107480.0,1.08682532]
[1751160382942,0.38704673,107490.0,107480.0,1.44762532]
[1751160383135,0.38704673,107490.0,107480.0,1.47982532]
[1751160390346,0.38704673,107490.0,107480.0,1.73667265]
[1751160397053,0.38704673,107490.0,107480.0,1.37587265]
[1751160397252,0.38704673,107490.0,107480.0,1.73667265]
[1751160401154,0.38704673,107490.0,107480.0,1.37587265]
[1751160401454,0.38704673,107490.0,107480.0,1.73667265]
[1751160406367,0.38704673,107490.0,107480.0,1.47982532]
[1751160406666,1.00469406,107490.0,107480.0,0.056786]
[1751160406866,1.10239406,107490.0,107480.0,0.056786]
[1751160407467,1.10239406,107490.0,107480.0,0.09396955]
[1751160409164,1.10239406,107490.0,107480.0,0.03818355]
[1751160409364,1.10239406,107490.0,107480.0,0.06606218]
[1751160409971,1.66243406,107490.0,107480.0,0.06606218]
[1751160415274,1.66243406,107490.0,107480.0,0.001]
[1751160417175,1.66243406,107490.0,107480.0,0.01507315]
[1751160418281,1.40558673,107490.0,107480.0,0.001]
[1751160420481,1.66243406,107490.0,107480.0,0.001]
[1751160420683,1.40558673,107490.0,107480.0,0.001]
[1751160421282,1.40558673,107490.0,107480.0,0.1312116]
[1751160421484,1.40558673,107490.0,107480.0,0.1947116]
[1751160421785,0.84554673,107490.0,107480.0,0.1947116]
[1751160421984,1.53362673,107490.0,107480.0,0.1947116]
[1751160422186,1.50142673,107490.0,107480.0,0.1947116]
[1751160422380,0.81334673,107490.0,107480.0,0.2262116]
[1751160422685,0.51500673,107490.0,107480.0,1.12858489]
[1751160422879,0.2581594,107490.0,107480.0,1.12858489]
[1751160423084,0.51500673,107490.0,107480.0,0.87173756]
[1751160423687,0.1301994,107490.0,107480.0,1.12858489]
[1751160424284,0.1301994,107490.0,107480.0,1.16576844]
[1751160424787,0.1301994,107490.0,107480.0,0.90892111]
[1751160424984,0.38704673,107490.0,107480.0,1.16676844]
[1751160425184,0.38704673,107490.0,107480.0,1.19467581]
[1751160425485,0.38704673,107490.0,107480.0,0.93982848]
[1751160425686,0.38704673,107490.0,107480.0,1.50002848]
[1751160432192,0.38704673,107490.0,107480.0,1.46284493]
[1751160432592,0.1301994,107490.0,107480.0,1.46284493]
[1751160440602,0.1301994,107490.0,107480.0,1.10204493]
[1751160440800,0.1301994,107490.0,107480.0,1.46284493]
[1751160446721,0.1301994,107490.0,107480.0,1.49998493]
[1751160447321,0.1301994,107490.0,107480.0,1.46284493]
[1751160447520,0.38704673,107490.0,107480.0,1.46284493]
[1751160448518,0.1301994,107490.0,107480.0,1.49999113]
[1751160448825,0.38704673,107490.0,107480.0,1.49999113]
[1751160451425,0.38704673,107490.0,107480.0,1.46284493]
[1751160454924,0.1301994,107490.0,107480.0,1.46284493]
[1751160455224,0.1301994,107490.0,107480.0,1.44422446]
[1751160456424,0.1301994,107490.0,107480.0,1.50001046]
[1751160458427,0.1301994,107490.0,107480.0,1.46284493]
[1751160460027,0.38704673,107490.0,107480.0,1.46284493]
[1751160465229,0.38704673,107490.0,107480.0,1.48150532]
[1751160465426,0.38704673,107490.0,107480.0,1.48126532]
[1751160468527,0.38704673,107490.0,107480.0,1.22441799]
[1751160468734,0.38704673,107490.0,107480.0,1.48126532]
[1751160478540,0.38704673,107490.0,107480.0,1.22441799]
[1751160478730,0.38704673,107490.0,107480.0,1.48126532]
[1751160485439,1.11524854,107500.0,107490.0,0.1301995]
[1751160485636,1.11524854,107500.0,107490.0,0.54110326]
[1751160486644,1.11524854,107500.0,107490.0,0.54210326]
[1751160490946,1.11524854,107500.0,107490.0,0.55120879]
[1751160491640,1.37209587,107500.0,107490.0,0.55120879]
[1751160495249,1.37209587,107500.0,107490.0,0.49543493]
[1751160495546,1.37209587,107500.0,107490.0,0.4863294]
[1751160495943,1.37209587,107500.0,107490.0,0.49554543]
[1751160496144,1.37209587,107500.0,107490.0,0.55131929]
[1751160496645,1.37209587,107500.0,107490.0,0.54210326]
[1751160500758,1.37194981,107500.0,107490.0,0.54210326]
[1751160505359,1.37194981,107500.0,107490.0,0.22018664]
[1751160505562,1.37194981,107500.0,107490.0,0.47703397]
[1751160508565,1.01114981,107500.0,107490.0,0.47703397]
[1751160508865,1.37194981,107500.0,107490.0,0.47703397]
[1751160512870,1.37194981,107500.0,107490.0,0.22018664]
[1751160513066,1.37194981,107500.0,107490.0,0.47703397]
[1751160514369,0.85068031,107500.0,107490.0,0.47703397]
[1751160514567,0.97860031,107500.0,107490.0,0.47703397]
[1751160514968,0.72175298,107500.0,107490.0,0.47703397]
[1751160515164,0.97860031,107500.0,107490.0,0.47703397]
[1751160515370,0.97860031,107500.0,107490.0,0.54210326]
[1751160516868,0.59680358,107500.0,107490.0,0.90290326]
[1751160517069,0.59680358,107500.0,107490.0,0.93320326]
[1751160519271,0.59680358,107500.0,107490.0,0.8774294]
[1751160520374,0.59680358,107500.0,107490.0,0.93320326]
[1751160521674,0.56425468,107500.0,107490.0,0.93320326]
[1751160521876,0.30740735,107500.0,107490.0,0.93320326]
[1751160522174,0.56425468,107500.0,107490.0,0.93320326]
[1751160522769,0.43633468,107500.0,107490.0,0.93320326]
[1751160524283,0.17948735,107500.0,107490.0,0.93320326]
[1751160524473,0.43633468,107500.0,107490.0,0.8774294]
[1751160525983,0.43633468,107500.0,107490.0,0.5166294]
[1751160526179,0.43633468,107500.0,107490.0,0.8774294]
[1751160528885,0.43633468,107500.0,107490.0,0.5166294]
[1751160529388,0.43633468,107500.0,107490.0,0.8774294]
[1751160531384,0.43633468,107500.0,107490.0,0.93320326]
[1751160537079,0.43633468,107500.0,107490.0,0.57240326]
[1751160537280,0.43633468,107500.0,107490.0,0.93320326]
[1751160537984,0.43633468,107500.0,107490.0,0.67635593]
[1751160538187,0.69318201,107500.0,107490.0,1.23623593]
[1751160538490,0.17948735,107500.0,107490.0,1.4373094]
[1751160539489,0.17948735,107500.0,107490.0,0.8774294]
[1751160539689,0.17948735,107500.0,107490.0,1.4397894]
[1751160540588,0.17948735,107500.0,107490.0,1.49756326]
[1751160540789,0.17948735,107500.0,107490.0,1.46038069]
[1751160540790,0.43633468,107500.0,107490.0,1.46038069]
[1751160542289,0.43633468,107500.0,107490.0,1.40460683]
[1751160544490,0.43633468,107500.0,107490.0,1.46035718]
[1751160545595,0.43633468,107500.0,107490.0,1.40460683]
[1751160546192,0.43633468,107500.0,107490.0,1.46035954]
[1751160546797,0.43633468,107500.0,107490.0,1.40460683]
[1751160549300,0.43633468,107500.0,107490.0,1.46035926]
[1751160551600,0.43633468,107500.0,107490.0,1.40460683]
[1751160558808,0.43633468,107500.0,107490.0,1.46962778]
[1751160560404,0.43633468,107500.0,107490.0,0.65142045]
[1751160560610,0.43633468,107500.0,107490.0,1.46922778]
[1751160560909,0.46913468,107500.0,107490.0,1.46922778]
[1751160561709,0.46913468,107500.0,107490.0,1.46822778]
[1751160562013,0.46913468,107500.0,107490.0,1.21138045]
[1751160562313,0.46913468,107500.0,107490.0,1.46822778]
[1751160562512,0.46913468,107500.0,107490.0,1.46922778]
[1751160562814,0.46913468,107500.0,107490.0,1.46722778]
[1751160563215,0.46913468,107500.0,107490.0,1.21038045]
[1751160563414,0.46913468,107500.0,107490.0,1.46922778]
[1751160565118,0.46913468,107500.0,107490.0,1.21238045]
[1751160565315,0.46913468,107500.0,107490.0,1.46922778]
[1751160566217,0.46913468,107500.0,107490.0,1.45993908]
[1751160572218,0.21228735,107500.0,107490.0,1.45993908]
[1751160572419,1.08678201,107500.0,107490.0,0.75141175]
[1751160572619,1.08678201,107500.0,107490.0,0.7885929]
[1751160572620,1.15118201,107500.0,107490.0,0.7885929]
[1751160573515,1.15118201,107500.0,107490.0,0.7865929]
[1751160573713,1.15118201,107500.0,107490.0,0.7855929]
[1751160580441,0.63748735,107500.0,107490.0,0.7855929]
[1751160580737,1.15118201,107500.0,107490.0,0.7855929]
[1751160582338,1.15118201,107500.0,107490.0,0.74841175]
[1751160586438,1.15118201,107500.0,107490.0,0.78561019]
[1751160588534,0.6207473,107500.0,107490.0,1.04245752]
[1751160588735,0.87759463,107500.0,107490.0,1.04245752]
[1751160588935,0.87759463,107500.0,107490.0,1.10445752]
[1751160592750,1.13444196,107500.0,107490.0,0.84761019]
[1751160592945,1.13444196,107500.0,107490.0,1.10445752]
[1751160593242,0.87759463,107500.0,107490.0,1.10445752]
[1751160596245,0.87759463,107500.0,107490.0,1.06725908]
[1751160598350,1.13444196,107500.0,107490.0,1.06725908]
[1751160598946,0.77364196,107500.0,107490.0,1.06725908]
[1751160599154,1.13444196,107500.0,107490.0,1.06725908]
[1751160599951,1.26440196,107500.0,107490.0,1.06725908]
[1751160601253,1.00755463,107500.0,107490.0,1.06725908]
[1751160601454,0.97495463,107500.0,107490.0,1.06725908]
[1751160601645,0.97495463,107500.0,107490.0,1.09815908]
[1751160602254,0.7181073,107500.0,107490.0,1.09815908]
[1751160602453,0.97495463,107500.0,107490.0,1.09815908]
[1751160603151,0.97495463,107500.0,107490.0,0.84131175]
[1751160603355,0.97495463,107500.0,107490.0,1.09815908]
[1751160606352,0.97495463,107500.0,107490.0,1.13536421]
[1751160608654,0.97495463,107500.0,107490.0,0.57388421]
[1751160608958,0.97495463,107500.0,107490.0,1.13740421]
[1751160609456,0.97495463,107500.0,107490.0,0.88055688]
[1751160609759,0.97495463,107500.0,107490.0,1.13740421]
[1751160616868,0.97495463,107500.0,107490.0,1.10019908]
[1751160617259,0.97495463,107500.0,107490.0,1.13740777]
[1751160617558,0.97495463,107500.0,107490.0,1.10019908]
[1751160617865,0.97495463,107500.0,107490.0,1.13740883]
[1751160618266,0.97495463,107500.0,107490.0,1.10019908]
[1751160619767,1.23180196,107500.0,107490.0,1.10019908]
[1751160624871,1.23180196,107500.0,107490.0,0.84335175]
[1751160625074,1.23180196,107500.0,107490.0,1.10019908]
[1751160626273,1.23180196,107500.0,107490.0,1.10958361]
[1751160631092,0.7181073,107500.0,107490.0,1.10958361]
[1751160631283,0.97495463,107500.0,107490.0,1.10958361]
[1751160635292,0.97495463,107500.0,107490.0,1.07237402]
[1751160636395,0.97495463,107500.0,107490.0,1.13740867]
[1751160638897,0.97495463,107500.0,107490.0,1.10019908]
[1751160647505,1.23180196,107500.0,107490.0,1.10019908]
[1751160656609,0.87100196,107500.0,107490.0,1.10019908]
[1751160656809,1.23180196,107500.0,107490.0,1.10019908]
[1751160660118,0.7181073,107500.0,107490.0,1.10019908]
[1751160660318,0.97495463,107500.0,107490.0,1.10019908]
[1751160661423,0.97495463,107500.0,107490.0,0.96999958]
[1751160661615,0.97495463,107500.0,107490.0,1.13740498]
[1751160663319,0.61415463,107500.0,107490.0,1.13740498]
[1751160663520,0.97495463,107500.0,107490.0,1.13740498]
[1751160666226,0.61415463,107500.0,107490.0,1.13740498]
[1751160666426,0.97495463,107500.0,107490.0,1.13740498]
[1751160667719,0.97495463,107500.0,107490.0,1.10019908]
[1751160668520,0.97495463,107500.0,107490.0,1.13741159]
[1751160671139,0.97495463,107500.0,107490.0,0.88056426]
[1751160671335,0.97495463,107500.0,107490.0,1.13741159]
[1751160674140,0.97495463,107500.0,107490.0,0.88056426]
[1751160674339,0.97495463,107500.0,107490.0,1.13741159]
[1751160676241,0.97495463,107500.0,107490.0,0.85274236]
[1751160677541,0.97495463,107500.0,107490.0,0.81552985]
[1751160678239,0.97495463,107500.0,107490.0,0.85274236]
[1751160678738,0.97495463,107500.0,107490.0,0.81552985]
[1751160679641,1.23180196,107500.0,107490.0,0.81552985]
[1751160680042,1.23180196,107500.0,107490.0,1.07237718]
[1751160683045,1.23180196,107500.0,107490.0,0.50885718]
[1751160683245,1.23180196,107500.0,107490.0,1.07021718]
[1751160684345,1.23180196,107500.0,107490.0,0.50885718]
[1751160684545,1.23180196,107500.0,107490.0,1.07021718]
[1751160684749,1.23180196,107500.0,107490.0,1.10742969]
[1751160684750,0.87100196,107500.0,107490.0,1.10742969]
[1751160685245,0.87100196,107500.0,107490.0,1.1074307]
[1751160686142,0.83920196,107500.0,107490.0,1.1074307]
[1751160686445,0.58235463,107500.0,107490.0,1.13525159]
[1751160687246,0.58235463,107500.0,107490.0,1.09803908]
[1751160688149,0.58235463,107500.0,107490.0,1.13525007]
[1751160688352,0.58235463,107500.0,107490.0,1.09803908]
[1751160689150,0.58235463,107500.0,107490.0,1.13524919]
[1751160689451,0.58235463,107500.0,107490.0,1.09803908]
[1751160691250,0.58235463,107500.0,107490.0,0.84119175]
[1751160691549,0.83920196,107500.0,107490.0,1.09803908]
[1751160710270,0.83920196,107500.0,107490.0,0.96783958]
[1751160710461,0.83920196,107500.0,107490.0,0.71099225]
[1751160710666,0.83920196,107500.0,107490.0,0.96783958]
[1751160710961,0.83920196,107500.0,107490.0,0.71099225]
[1751160711165,0.83920196,107500.0,107490.0,0.71039225]
[1751160711366,1.20000196,107500.0,107490.0,0.74760425]
[1751160714669,1.20000196,107500.0,107490.0,0.87780365]
[1751160714969,1.20000196,107500.0,107490.0,0.87680365]
[1751160716375,1.20000196,107500.0,107490.0,0.81176971]
[1751160716674,1.20000196,107500.0,107490.0,0.68157031]
[1751160717575,1.20000196,107500.0,107490.0,0.81176981]
[1751160718372,1.20000196,107500.0,107490.0,0.84898181]
[1751160721974,0.6863073,107500.0,107490.0,0.84898181]
[1751160722173,1.20000196,107500.0,107490.0,0.84898181]
[1751160722874,0.83920196,107500.0,107490.0,0.84898181]
[1751160723073,1.20000196,107500.0,107490.0,0.84898181]
[1751160723575,0.83920196,107500.0,107490.0,0.84898181]
[1751160723777,1.20000196,107500.0,107490.0,0.84898181]
[1751160726079,0.6863073,107500.0,107490.0,0.84898181]
[1751160726279,1.20000196,107500.0,107490.0,0.87680375]
[1751160728386,1.20000196,107500.0,107490.0,0.74660425]
[1751160729678,1.20000196,107500.0,107490.0,0.87680375]
[1751160730687,1.20000196,107500.0,107490.0,0.74660425]
[1751160731186,1.20000196,107500.0,107490.0,0.87680375]
[1751160731385,1.20000196,107500.0,107490.0,0.83959175]
[1751160732995,1.20000196,107500.0,107490.0,1.09643908]
[1751160735086,1.20000196,107500.0,107490.0,0.53567908]
[1751160736292,1.20000196,107500.0,107490.0,0.27883175]
[1751160739791,1.20000196,107500.0,107490.0,0.14863225]
[1751160741596,1.20000196,107500.0,107490.0,0.27883175]
[1751160746197,0.83920196,107500.0,107490.0,0.27883175]
[1751160746398,1.20000196,107500.0,107490.0,0.27883175]
[1751160747200,0.83920196,107500.0,107490.0,0.27883175]
[1751160747400,1.20000196,107500.0,107490.0,0.27883175]
[1751160749900,1.26290196,107500.0,107490.0,0.27883175]
[1751160751400,1.26290196,107500.0,107490.0,0.24793175]
[1751160751701,0.7492073,107500.0,107490.0,0.50477908]
[1751160751901,1.00605463,107500.0,107490.0,0.50477908]
[1751160752099,1.26290196,107500.0,107490.0,0.50477908]
[1751160760600,0.7492073,107500.0,107490.0,0.50477908]
[1751160760801,1.00605463,107500.0,107490.0,0.50477908]
[1751160766305,1.00605463,107500.0,107490.0,0.54200018]
[1751160768105,0.7492073,107500.0,107490.0,0.54200018]
[1751160768309,1.00605463,107500.0,107490.0,0.54200018]
[1751160773315,0.64525463,107500.0,107490.0,0.54200018]
[1751160773513,1.00605463,107500.0,107490.0,0.54200018]
[1751160774016,0.64525463,107500.0,107490.0,0.54200018]
[1751160774215,1.00605463,107500.0,107490.0,0.54200018]
[1751160774816,0.7492073,107500.0,107490.0,0.54200018]
[1751160775013,1.00605463,107500.0,107490.0,0.54200018]
[1751160776316,1.00605463,107500.0,107490.0,0.50477908]
[1751160784127,0.7492073,107500.0,107490.0,0.50477908]
[1751160784326,1.26290196,107500.0,107490.0,0.50477908]
[1751160784525,1.26290196,107500.0,107490.0,0.24793175]
[1751160784724,1.26290196,107500.0,107490.0,0.50477908]
[1751160785417,1.26290196,107500.0,107490.0,0.50577908]
[1751160788131,0.7492073,107500.0,107490.0,0.50577908]
[1751160788336,1.00605463,107500.0,107490.0,0.50577908]
[1751160789137,1.26290196,107500.0,107490.0,0.50577908]
[1751160791633,0.7492073,107500.0,107490.0,0.50577908]
[1751160791834,1.00605463,107500.0,107490.0,0.50577908]
[1751160793436,1.26290196,107500.0,107490.0,0.50577908]
[1751160799045,0.64525463,107500.0,107490.0,0.50577908]
[1751160799247,1.00605463,107500.0,107490.0,0.50577908]
[1751160806452,1.00605463,107500.0,107490.0,0.54299935]
[1751160816357,1.00605463,107500.0,107490.0,0.50577908]
[1751160818262,0.78039463,107500.0,107490.0,0.50577908]
[1751160818564,0.90919463,107500.0,107490.0,0.48254683]
[1751160820261,0.78039463,107500.0,107490.0,0.48254683]
[1751160820864,0.5235473,107500.0,107490.0,0.48254683]
[1751160821066,0.78039463,107500.0,107490.0,0.48254683]
[1751160824367,0.41959463,107500.0,107490.0,0.48254683]
[1751160824564,0.41959463,107500.0,107490.0,0.55685649]
[1751160826261,0.41959463,107500.0,107490.0,0.48254683]
[1751160826460,0.41959463,107500.0,107490.0,0.53837138]
[1751160834368,0.1627473,107500.0,107490.0,0.53837138]
[1751160834567,0.41959463,107500.0,107490.0,0.53837138]
[1751160837369,0.45159463,107500.0,107490.0,0.53837138]
[1751160839772,0.1947473,107500.0,107490.0,0.53837138]
[1751160839967,0.45159463,107500.0,107490.0,0.53837138]
[1751160841669,0.45159463,107500.0,107490.0,0.28152405]
[1751160841871,0.45159463,107500.0,107490.0,0.53837138]
[1751160843373,0.1947473,107500.0,107490.0,0.53837138]
[1751160843568,0.45159463,107500.0,107490.0,0.53837138]
[1751160856377,0.45159463,107500.0,107490.0,0.51976634]
[1751160866390,0.45159463,107500.0,107490.0,0.53837138]
[1751160872589,0.1627473,107500.0,107490.0,0.53837138]
[1751160872793,0.41959463,107500.0,107490.0,0.51976659]
[1751160878690,0.1627473,107500.0,107490.0,0.51976659]
[1751160879189,0.41959463,107500.0,107490.0,0.51976659]
[1751160881093,0.1627473,107500.0,107490.0,0.51976659]
[1751160881299,0.41959463,107500.0,107490.0,0.51976659]
[1751160882588,0.78039463,107500.0,107490.0,0.51976659]
[1751160885189,0.5235473,107500.0,107490.0,0.51976659]
[1751160885397,0.78039463,107500.0,107490.0,0.51976659]
[1751160890096,0.78039463,107500.0,107490.0,0.26291926]
[1751160890298,0.78039463,107500.0,107490.0,0.51976659]
[1751160890998,0.78039463,107500.0,107490.0,0.57559114]
[1751160891190,0.5235473,107500.0,107490.0,0.53837138]
[1751160891497,0.78039463,107500.0,107490.0,0.53837138]
[1751160896600,0.78039463,107500.0,107490.0,0.57558625]
[1751160904406,0.78039463,107500.0,107490.0,0.53837138]
[1751160906407,0.78039463,107500.0,107490.0,0.55685649]
[1751160911107,0.81289463,107500.0,107490.0,0.55685649]
[1751160911612,0.45209463,107500.0,107490.0,0.55685649]
[1751160911813,0.81289463,107500.0,107490.0,0.55685649]
[1751160915011,0.81289463,107500.0,107490.0,0.26750916]
[1751160915206,0.87339463,107500.0,107490.0,0.52435649]
[1751160919911,0.87339463,107500.0,107490.0,0.50587761]
[1751160929608,0.51259463,107500.0,107490.0,0.50587761]
[1751160929808,0.87339463,107500.0,107490.0,0.45004683]
[1751160930815,0.87339463,107500.0,107490.0,0.52435649]
[1751160935314,0.6165473,107500.0,107490.0,0.52435649]
[1751160935520,0.87339463,107500.0,107490.0,0.52435649]
[1751160940222,0.51259463,107500.0,107490.0,0.52435649]
[1751160940413,0.87339463,107500.0,107490.0,0.52435649]
[1751160946328,0.87339463,107500.0,107490.0,0.50587774]
[1751160956333,0.87339463,107500.0,107490.0,0.52435649]
[1751160958732,0.87339463,107500.0,107490.0,0.50587737]
[1751160975149,0.87339463,107500.0,107490.0,0.24903004]
[1751160975645,1.13024196,107500.0,107490.0,0.50587737]
[1751160975844,0.87339463,107500.0,107490.0,0.50587737]
[1751160976949,0.51259463,107500.0,107490.0,0.50587737]
[1751160977243,0.6165473,107500.0,107490.0,0.50587737]
[1751160977544,0.87339463,107500.0,107490.0,0.50587737]
[1751160978944,0.51259463,107500.0,107490.0,0.50587737]
[1751160979139,0.87339463,107500.0,107490.0,0.50587737]
[1751160982950,0.51259463,107500.0,107490.0,0.50587737]
[1751160983145,0.87339463,107500.0,107490.0,0.50587737]
[1751160983749,0.87339463,107500.0,107490.0,0.54309795]
[1751160983947,0.51259463,107500.0,107490.0,0.54309795]
[1751160984150,0.87339463,107500.0,107490.0,0.54309795]
[1751160984549,0.51259463,107500.0,107490.0,0.54309795]
[1751160984750,0.87339463,107500.0,107490.0,0.54309795]
[1751160984946,0.87339463,107500.0,107490.0,0.50587737]
[1751160990052,0.87339463,107500.0,107490.0,0.24903004]
[1751160990448,0.87339463,107500.0,107490.0,0.50587737]
[1751160996357,0.87339463,107500.0,107490.0,0.54309797]
[1751160997552,0.51259463,107500.0,107490.0,0.54309797]
[1751160997751,0.87339463,107500.0,107490.0,0.54309797]
[1751160999961,0.51259463,107500.0,107490.0,0.54309797]
[1751161000262,0.87339463,107500.0,107490.0,0.54309797]
[1751161000556,0.51259463,107500.0,107490.0,0.54309797]
[1751161000861,0.87339463,107500.0,107490.0,0.54309797]
[1751161004262,0.87339463,107500.0,107490.0,0.28625064]
[1751161004563,1.13024196,107500.0,107490.0,0.54309797]
[1751161004962,1.13024196,107500.0,107490.0,0.28625064]
[1751161005260,1.13024196,107500.0,107490.0,0.54309797]
[1751161006262,1.13024196,107500.0,107490.0,0.28625064]
[1751161006462,1.13024196,107500.0,107490.0,0.24903004]
[1751161006664,1.13024196,107500.0,107490.0,0.50587737]
[1751161007558,0.87339463,107500.0,107490.0,0.50587737]
[1751161007763,1.13024196,107500.0,107490.0,1.06675737]
[1751161018073,1.13024196,107500.0,107490.0,1.10397793]
[1751161019371,0.6165473,107500.0,107490.0,1.10397793]
[1751161019572,1.13024196,107500.0,107490.0,1.10397793]
[1751161019974,0.6165473,107500.0,107490.0,1.10397793]
[1751161020174,1.13024196,107500.0,107490.0,1.10397793]
[1751161020574,0.6165473,107500.0,107490.0,1.10397793]
[1751161020775,1.13024196,107500.0,107490.0,1.10397793]
[1751161020974,1.13024196,107500.0,107490.0,0.7850506]
[1751161021275,1.13024196,107500.0,107490.0,1.04189793]
[1751161021775,0.6165473,107500.0,107490.0,1.04189793]
[1751161022073,1.13024196,107500.0,107490.0,0.7850506]
[1751161022477,0.6165473,107500.0,107490.0,0.7850506]
[1751161022774,1.13024196,107500.0,107490.0,0.7850506]
[1751161023076,0.6165473,107500.0,107490.0,0.7850506]
[1751161023377,1.13024196,107500.0,107490.0,0.7850506]
[1751161023779,0.6165473,107500.0,107490.0,0.7850506]
[1751161023982,1.13024196,107500.0,107490.0,0.7850506]
[1751161024476,0.6165473,107500.0,107490.0,0.7850506]
[1751161024678,1.13024196,107500.0,107490.0,0.7850506]
[1751161025081,0.6165473,107500.0,107490.0,0.7850506]
[1751161025281,1.13024196,107500.0,107490.0,0.7850506]
[1751161025783,0.6165473,107500.0,107490.0,0.7850506]
[1751161025983,1.13024196,107500.0,107490.0,0.7850506]
[1751161027580,1.13024196,107500.0,107490.0,0.2242506]
[1751161027783,1.14738919,107500.0,107490.0,0.7851306]
[1751161028083,1.14738919,107500.0,107490.0,0.74791004]
[1751161030488,0.63369453,107500.0,107490.0,0.74791004]
[1751161030788,1.14738919,107500.0,107490.0,0.74791004]
[1751161031589,0.63369453,107500.0,107490.0,0.74791004]
[1751161031789,1.14738919,107500.0,107490.0,0.74791004]
[1751161032390,0.63369453,107500.0,107490.0,0.74791004]
[1751161032592,1.14738919,107500.0,107490.0,0.74791004]
[1751161034391,0.63369453,107500.0,107490.0,0.74791004]
[1751161034593,1.14738919,107500.0,107490.0,0.74791004]
[1751161034892,1.14738919,107500.0,107490.0,0.74807004]
[1751161035492,0.63369453,107500.0,107490.0,0.74807004]
[1751161035692,1.14738919,107500.0,107490.0,0.76260942]
[1751161036095,0.63369453,107500.0,107490.0,0.76260942]
[1751161036291,1.14738919,107500.0,107490.0,0.74807004]
[1751161036788,1.14738919,107500.0,107490.0,0.18703004]